bitfinex-derivatives/quotes_ETHF0:USTF0_20250326
["timestamp","ask_amount","ask_price","bid_price","bid_amount"]
[1742964256693,9.11150474,2056.5,2056.4,2.94984732]
[1742964258211,10.08390474,2056.5,2056.4,1.97739732]
[1742964259204,10.08390474,2056.5,2056.4,2.94984732]
[1742964262111,6.95990474,2056.5,2056.4,2.94984732]
[1742964262411,10.08390474,2056.5,2056.4,2.94984732]
[1742964262609,6.95990474,2056.5,2056.4,2.94984732]
[1742964263106,5.98750474,2056.5,2056.4,2.94984732]
[1742964264210,6.95990474,2056.5,2056.4,2.94984732]
[1742964270415,6.95990474,2056.5,2056.4,1.97739732]
[1742964271207,6.95990474,2056.5,2056.4,2.94984732]
[1742964271411,6.95990474,2056.5,2056.4,1.97739732]
[1742964271608,6.95990474,2056.5,2056.4,2.94984732]
[1742964275712,5.98750474,2056.5,2056.4,2.94984732]
[1742964275917,6.95990474,2056.5,2056.4,2.94984732]
[1742964281316,6.95990474,2056.5,2056.4,1.97739732]
[1742964282217,6.95990474,2056.5,2056.4,2.94984732]
[1742964287017,5.98750474,2056.5,2056.4,2.94984732]
[1742964288525,6.95990474,2056.5,2056.4,2.94984732]
[1742964289423,6.95990474,2056.5,2056.4,1.97739732]
[1742964290226,6.95990474,2056.5,2056.4,2.94984732]
[1742964290820,5.98750474,2056.5,2056.4,2.94984732]
[1742964291126,6.95990474,2056.5,2056.4,2.94984732]
[1742964296320,7.60400474,2056.5,2056.4,2.94984732]
[1742964299427,7.60400474,2056.5,2056.4,2.28644732]
[1742964301327,1.3563,2056.5,2056.4,2.28644732]
[1742964301527,0.00729732,2056.7,2056.6,0.97236]
[1742964301733,0.00729732,2056.7,2056.6,4.18016]
[1742964301934,0.00729732,2056.7,2056.6,6.27776]
[1742964302430,0.00729732,2056.7,2056.5,0.6881]
[1742964302431,5.61084206,2056.7,2056.5,0.6881]
[1742964302638,6.64090474,2056.6,2056.5,0.97239]
[1742964305133,6.64090474,2056.6,2056.4,1.32049732]
[1742964305336,1.3261,2056.5,2056.4,1.32049732]
[1742964306444,9.08030474,2056.5,2056.4,0.00729732]
[1742964307246,10.05270474,2056.5,2056.4,0.00729732]
[1742964308636,10.88358796,2056.5,2056.4,0.00729732]
[1742964309644,11.7652845,2056.5,2056.4,0.00729732]
[1742964310342,10.88358796,2056.5,2056.4,0.00729732]
[1742964311352,0.9727,2055.9,2055.7,4.85705]
[1742964311548,0.97267,2056.0,2055.8,2.37012]
[1742964311855,1.2815,2055.9,2055.8,2.37014]
[1742964312155,1.975,2055.9,2055.8,1.3974]
[1742964312453,1.975,2055.9,2055.8,2.37014]
[1742964312654,1.975,2055.9,2055.8,1.3974]
[1742964312845,2.94769,2055.9,2055.8,2.37014]
[1742964313240,2.94769,2055.9,2055.8,1.3974]
[1742964315949,2.94769,2055.9,2055.8,2.37014]
[1742964316156,2.94769,2055.9,2055.8,1.3974]
[1742964317152,0.97274,2055.8,2055.7,3.2078]
[1742964317450,6.89844474,2055.8,2055.7,3.2078]
[1742964317858,6.89844474,2055.8,2055.7,4.6227]
[1742964318155,6.89844474,2055.8,2055.6,0.68309732]
[1742964318156,0.97278,2055.7,2055.6,0.68309732]
[1742964318345,7.59118474,2055.7,2055.6,0.68309732]
[1742964318752,6.61840474,2055.7,2055.6,1.65592732]
[1742964318953,3.2078,2056.3,2055.6,0.68309732]
[1742964319160,4.4175,2056.1,2056.0,0.97261]
[1742964319461,5.39009,2056.1,2055.9,2.38756]
[1742964319661,4.09559,2056.1,2056.0,1.4149]
[1742964320055,8.72679474,2056.1,2056.0,1.4149]
[1742964322462,0.97264,2056.0,2055.9,1.61866]
[1742964322652,6.24194474,2056.0,2055.9,2.93636]
[1742964322852,6.88904474,2056.0,2055.9,2.93636]
[1742964324660,5.91640474,2056.0,2055.9,2.93636]
[1742964325162,4.63120474,2056.0,2055.9,2.93636]
[1742964326261,5.60384474,2056.0,2055.9,1.9637]
[1742964326462,4.63120474,2056.0,2055.9,2.93639]
[1742964326856,5.60384474,2056.0,2055.9,1.9637]
[1742964327764,5.60384474,2056.0,2055.9,2.93639]
[1742964331055,5.60384474,2056.0,2055.9,1.9637]
[1742964331254,5.60384474,2056.0,2055.9,2.93639]
[1742964333763,0.97269,2055.9,2055.8,3.2078]
[1742964334060,0.97274,2055.8,2055.7,1.334]
[1742964334270,0.97278,2055.7,2055.6,0.00729732]
[1742964334462,5.60398474,2055.7,2055.6,1.34129732]
[1742964335973,7.01208474,2055.7,2055.6,1.34129732]
[1742964337661,7.01208474,2055.7,2055.6,2.31412732]
[1742964337862,7.01208474,2055.7,2055.6,1.34129732]
[1742964340064,10.21988474,2055.7,2055.6,0.00729732]
[1742964341065,11.05076679,2055.7,2055.6,0.00729732]
[1742964341362,13.55053936,2055.7,2055.6,0.00729732]
[1742964341567,14.43183529,2055.7,2055.6,0.00729732]
[1742964341972,14.51258889,2055.7,2055.6,0.00729732]
[1742964346069,14.51259888,2055.7,2055.6,0.00729732]
[1742964346971,13.63130295,2055.7,2055.6,0.00729732]
[1742964347161,12.80064833,2055.7,2055.6,0.00729732]
[1742964347358,12.71988474,2055.7,2055.6,0.00729732]
[1742964347970,12.80064079,2055.7,2055.6,0.00729732]
[1742964348158,12.80064115,2055.7,2055.6,0.00729732]
[1742964349764,10.30064115,2055.7,2055.6,0.00729732]
[1742964352165,10.30064219,2055.7,2055.6,0.00729732]
[1742964353270,10.21988474,2055.7,2055.6,0.00729732]
[1742964356065,11.04884198,2055.7,2055.6,0.00729732]
[1742964360776,11.92905427,2055.7,2055.6,0.00729732]
[1742964367280,10.52095427,2055.7,2055.6,0.00729732]
[1742964367583,1.85299229,2055.7,2055.6,0.71489732]
[1742964367880,4.97599229,2055.7,2055.6,0.71489732]
[1742964368079,4.09578,2055.7,2055.6,2.12839732]
[1742964368681,11.93478474,2055.7,2055.6,2.12839732]
[1742964368879,12.76599256,2055.7,2055.6,2.12839732]
[1742964369079,14.14129256,2055.7,2055.6,2.12839732]
[1742964369285,15.02361446,2055.7,2055.6,2.12839732]
[1742964369475,15.67451446,2055.7,2055.6,1.42079732]
[1742964369876,15.67451446,2055.7,2055.6,0.00729732]
[1742964387189,16.45786577,2055.7,2055.6,0.00729732]
[1742964389090,0.97316,2054.9,2054.8,3.2078]
[1742964389306,0.97368,2053.9,2053.5,2.80351929]
[1742964389489,4.8661,2054.8,2054.0,0.97358]
[1742964389490,3.2078,2054.4,2054.0,0.97358]
[1742964389694,3.143,2054.3,2054.1,2.6237]
[1742964389902,3.143,2054.3,2054.2,1.3435]
[1742964390090,4.11645,2054.3,2054.2,1.3435]
[1742964396698,2.44069732,2054.5,2054.2,1.3435]
[1742964396699,0.00729732,2054.5,2054.4,0.9734]
[1742964396907,0.00729732,2054.5,2054.2,7.0513]
[1742964396908,0.97337,2054.5,2054.3,2.37822]
[1742964397106,0.97337,2054.5,2054.4,1.4048]
[1742964397608,0.97337,2054.5,2054.4,44.7048]
[1742964398402,0.97334,2054.6,2054.4,4.8782]
[1742964398607,0.9733,2054.6,2054.5,2.1039]
[1742964400006,0.9733,2054.6,2054.5,2.8067]
[1742964401114,4.12158732,2054.7,2054.5,2.8067]
[1742964401411,4.12158732,2054.7,2054.6,2.2519]
[1742964401611,4.12158732,2054.7,2054.6,1.2786]
[1742964402112,4.12158732,2054.7,2054.6,2.2519]
[1742964402600,4.12158732,2054.7,2054.6,1.2786]
[1742964404605,4.12158732,2054.7,2054.6,2.2519]
[1742964405208,4.12158732,2054.7,2054.6,1.2786]
[1742964406102,4.12158732,2054.7,2054.6,2.2519]
[1742964406299,4.12158732,2054.7,2054.6,1.2786]
[1742964406614,10.98730206,2054.7,2054.2,3.2078]
[1742964406805,0.9734,2054.4,2054.3,2.32715]
[1742964407002,4.1114,2054.4,2054.3,0.97345]
[1742964407411,0.97345,2054.3,2054.2,4.86155]
[1742964411516,3.138,2054.4,2054.3,0.97345]
[1742964413316,0.97345,2054.3,2054.2,3.8881]
[1742964413522,2.29275,2054.3,2054.2,3.8881]
[1742964416607,0.97354,2054.1,2054.0,0.00729732]
[1742964419328,1.62554,2054.1,2054.0,0.00729732]
[1742964420225,6.25674474,2054.1,2054.0,0.00729732]
[1742964420719,9.39774474,2054.1,2054.0,0.00729732]
[1742964421429,4.11454,2054.1,2054.0,0.00729732]
[1742964421724,3.142,2054.1,2054.0,0.98088732]
[1742964421923,4.11554,2054.1,2054.0,0.98088732]
[1742964422121,1.2926,2054.2,2054.1,0.97354]
[1742964422325,1.2926,2054.2,2054.1,4.18134]
[1742964422527,1.2926,2054.2,2054.1,4.82944]
[1742964422730,2.26609,2054.2,2054.1,3.8559]
[1742964422918,2.26609,2054.2,2054.1,4.82944]
[1742964423318,1.2926,2054.2,2054.1,4.82944]
[1742964424631,2.26609,2054.2,2054.1,4.82944]
[1742964425126,2.26609,2054.2,2054.1,3.8559]
[1742964425721,2.26609,2054.2,2054.1,0.6481]
[1742964425926,2.26609,2054.2,2054.1,1.3482]
[1742964427021,6.89729474,2054.2,2054.1,1.3482]
[1742964430535,6.89729474,2054.2,2054.1,2.32174]
[1742964430724,6.89729474,2054.2,2054.1,1.3482]
[1742964434136,6.89729474,2054.2,2054.1,2.32174]
[1742964434348,6.89729474,2054.2,2054.1,1.3482]
[1742964435133,6.89729474,2054.2,2054.1,2.32174]
[1742964435530,6.89729474,2054.2,2054.1,1.3482]
[1742964437237,6.89729474,2054.2,2054.1,2.32174]
[1742964438342,6.89729474,2054.2,2054.1,1.3482]
[1742964439941,5.92380474,2054.2,2054.1,2.32174]
[1742964440130,6.89729474,2054.2,2054.1,3.01644]
[1742964440526,5.92380474,2054.2,2054.1,3.01644]
[1742964441137,6.89729474,2054.2,2054.1,3.01644]
[1742964447447,0.97354,2054.1,2054.0,0.00729732]
[1742964447647,3.68884,2054.1,2054.0,0.98088732]
[1742964447942,3.68884,2054.1,2054.0,0.00729732]
[1742964448147,3.68884,2054.1,2054.0,0.98088732]
[1742964449747,3.68884,2054.1,2053.5,2.43452]
[1742964449748,2.4341,2053.9,2053.0,3.2078]
[1742964449933,3.2078,2053.3,2053.0,1.3031]
[1742964450138,3.202,2053.7,2053.2,5.64271]
[1742964450343,3.202,2053.7,2053.3,1.3031]
[1742964450344,7.61928206,2053.7,2053.3,1.3031]
[1742964450549,0.97387,2053.5,2053.4,1.67426]
[1742964450744,0.97387,2053.5,2053.4,2.97736]
[1742964451642,0.97387,2053.5,2053.4,2.0035]
[1742964452150,0.97387,2053.5,2053.4,2.97737]
[1742964452351,0.97387,2053.5,2053.4,2.0035]
[1742964452641,0.97387,2053.5,2053.4,0.7004]
[1742964453150,5.60507474,2053.5,2053.4,0.7004]
[1742964453751,6.90237474,2053.5,2053.4,0.7004]
[1742964453945,6.90237474,2053.5,2053.4,1.67427]
[1742964454144,6.90237474,2053.5,2053.4,3.01837]
[1742964458149,6.90237474,2053.5,2053.4,2.0445]
[1742964458350,6.90237474,2053.5,2053.4,3.01837]
[1742964459749,6.90237474,2053.5,2053.4,2.0445]
[1742964460551,6.90237474,2053.5,2053.4,3.01837]
[1742964462056,5.92850474,2053.5,2053.4,3.01837]
[1742964462256,6.90233474,2053.5,2053.4,3.01837]
[1742964466661,5.92850474,2053.5,2053.4,3.01837]
[1742964467363,6.90233474,2053.5,2053.4,3.01837]
[1742964470550,5.92850474,2053.5,2053.4,3.01837]
[1742964470765,6.90233474,2053.5,2053.4,3.01837]
[1742964471563,5.92850474,2053.5,2053.4,3.01837]
[1742964472158,6.90233474,2053.5,2053.4,3.01837]
[1742964476972,6.90233474,2053.5,2053.4,2.0445]
[1742964478158,6.90233474,2053.5,2053.4,3.01837]
[1742964480374,5.92850474,2053.5,2053.4,3.01837]
[1742964480672,1.2973,2053.5,2053.4,3.01837]
[1742964481460,2.27113,2053.5,2053.4,3.01837]
[1742964482472,1.2973,2053.5,2053.4,3.01837]
[1742964482670,2.27113,2053.5,2053.4,3.01837]
[1742964484777,1.2973,2053.5,2053.4,3.01837]
[1742964486283,1.2973,2053.5,2053.4,0.97387]
[1742964486978,1.2973,2053.5,2053.4,2.38577]
[1742964488078,5.92850474,2053.5,2053.4,2.38577]
[1742964488278,6.90233474,2053.5,2053.4,2.38577]
[1742964490277,6.90233474,2053.5,2053.4,1.4119]
[1742964490782,6.90233474,2053.5,2053.4,2.38577]
[1742964501793,5.92850474,2053.5,2053.4,2.38577]
[1742964501990,0.00729732,2053.7,2053.6,0.97378]
[1742964502189,5.61223206,2053.7,2053.6,0.97378]
[1742964503295,7.01813206,2053.7,2053.6,2.32028]
[1742964504197,7.01813206,2053.7,2053.6,1.3465]
[1742964505486,0.97378,2053.6,2053.5,0.6904]
[1742964505692,0.97383,2053.5,2053.4,4.18166]
[1742964505894,6.97883474,2053.5,2053.4,4.18166]
[1742964506080,8.38473474,2053.5,2053.4,4.18166]
[1742964507090,7.41090474,2053.5,2053.4,5.48566]
[1742964507291,8.38473474,2053.5,2053.4,4.18166]
[1742964507892,8.38473474,2053.5,2053.4,5.48566]
[1742964508300,8.38473474,2053.5,2053.4,4.5118]
[1742964509199,8.38473474,2053.5,2053.4,5.48567]
[1742964509409,8.38473474,2053.5,2053.4,4.5118]
[1742964509597,8.38473474,2053.5,2053.2,0.70109732]
[1742964509598,0.97392,2053.3,2053.2,0.70109732]
[1742964509806,0.97392,2053.3,2053.2,0.00729732]
[1742964509992,5.60512474,2053.3,2053.2,2.38036732]
[1742964510197,6.92352474,2053.3,2053.2,2.38036732]
[1742964510497,6.92352474,2053.3,2053.2,1.40639732]
[1742964511396,6.92352474,2053.3,2053.2,0.00729732]
[1742964511591,10.06252474,2053.3,2053.2,0.00729732]
[1742964518206,2.43522,2053.0,2052.3,3.2078]
[1742964518511,0.97424,2052.7,2052.5,2.34879]
[1742964518705,0.97424,2052.7,2052.6,1.3745]
[1742964518911,2.26754,2052.7,2052.6,2.078]
[1742964521297,2.94514,2052.7,2052.6,2.078]
[1742964522405,2.9451,2052.7,2052.6,2.078]
[1742964524112,7.57630474,2052.7,2052.6,2.078]
[1742964528309,7.57630474,2052.7,2052.6,3.05225]
[1742964528615,7.57630474,2052.7,2052.6,2.078]
[1742964529014,7.57630474,2052.7,2052.6,3.05225]
[1742964529412,5.64277,2053.2,2052.6,2.078]
[1742964529619,0.97412,2052.9,2052.8,0.97411]
[1742964529813,0.97412,2052.9,2052.8,1.353]
[1742964530014,0.97412,2052.9,2052.8,43.12716]
[1742964530015,5.60532474,2052.9,2052.8,43.12716]
[1742964530418,7.00092474,2052.9,2052.8,43.12716]
[1742964530618,7.00092474,2052.9,2052.8,2.32716]
[1742964531820,7.00092474,2052.9,2052.8,1.353]
[1742964532522,7.00092474,2052.9,2052.7,0.6956]
[1742964532523,0.97416,2052.8,2052.7,0.6956]
[1742964532721,10.07236474,2052.8,2052.7,0.6956]
[1742964532922,10.07236474,2052.8,2052.7,2.0644]
[1742964534318,10.07236474,2052.8,2052.7,0.6956]
[1742964534525,0.9743,2052.6,2052.5,2.2593]
[1742964534919,5.60550474,2052.6,2052.5,1.285]
[1742964535223,6.94870474,2052.6,2052.5,1.285]
[1742964536629,5.97440474,2052.6,2052.5,2.2593]
[1742964536924,6.94865474,2052.6,2052.5,2.2593]
[1742964537326,6.94865474,2052.6,2052.5,1.285]
[1742964539026,6.94865474,2052.6,2052.5,2.2593]
[1742964539325,6.94865474,2052.6,2052.5,1.285]
[1742964539823,6.94865474,2052.6,2052.5,2.2593]
[1742964540825,6.94865474,2052.6,2052.5,1.285]
[1742964541228,0.9743,2052.5,2052.4,0.68209732]
[1742964541429,10.18000474,2052.5,2052.4,0.00729732]
[1742964541616,6.04070474,2052.5,2052.4,0.00729732]
[1742964541816,10.18100474,2052.5,2052.4,0.67699732]
[1742964542721,10.18100474,2052.5,2052.4,2.04689732]
[1742964542921,10.18100474,2052.5,2052.4,3.02124732]
[1742964543122,10.18100474,2052.5,2052.4,2.04689732]
[1742964546626,9.20670474,2052.5,2052.4,3.02124732]
[1742964546826,9.20670474,2052.5,2052.4,2.04689732]
[1742964546827,10.18100474,2052.5,2052.4,2.04689732]
[1742964547930,10.18100474,2052.5,2052.4,0.00729732]
[1742964548333,10.18100474,2052.5,2052.4,1.35999732]
[1742964549228,10.18100474,2052.5,2052.4,2.02449732]
[1742964551132,10.18100474,2052.5,2052.4,0.00729732]
[1742964552822,10.17500474,2052.5,2052.4,0.98164732]
[1742964553236,10.17500474,2052.5,2052.4,2.96404732]
[1742964553630,6.04070474,2052.5,2052.4,2.96404732]
[1742964553831,3.16629732,2052.7,2052.6,0.97425]
[1742964554030,4.63120474,2052.6,2052.5,2.93586]
[1742964554329,8.77172206,2052.7,2052.6,0.97425]
[1742964554525,5.61272206,2052.7,2052.6,0.97425]
[1742964555030,5.61272206,2052.7,2052.6,2.34525]
[1742964556336,5.61272206,2052.7,2052.6,1.371]
[1742964557742,5.61272206,2052.7,2052.6,2.34525]
[1742964559029,0.97425,2052.6,2052.5,1.64795]
[1742964559229,0.97425,2052.6,2052.5,2.93025]
[1742964559230,6.97005474,2052.6,2052.5,2.93025]
[1742964561846,5.99580474,2052.6,2052.5,2.93025]
[1742964563446,6.97005474,2052.6,2052.5,2.93025]
[1742964564137,5.99580474,2052.6,2052.5,2.93025]
[1742964565647,6.97005474,2052.6,2052.5,2.93025]
[1742964565946,5.99580474,2052.6,2052.5,2.93025]
[1742964566543,1.3646,2052.6,2052.5,2.93025]
[1742964568035,3.147,2053.1,2053.0,0.97406]
[1742964568241,0.97411,2052.9,2052.8,5.1729]
[1742964568440,0.97411,2052.9,2052.8,6.14706]
[1742964569048,2.34631,2052.9,2052.8,6.14706]
[1742964569651,2.34631,2052.9,2052.8,2.93926]
[1742964569846,2.34631,2052.9,2052.8,6.14706]
[1742964570847,1.3722,2052.9,2052.8,6.14706]
[1742964572238,2.34631,2052.9,2052.8,6.14706]
[1742964573448,1.3722,2052.9,2052.8,6.14706]
[1742964574446,2.34631,2052.9,2052.8,6.14706]
[1742964575351,6.00340474,2052.9,2052.6,0.97421]
[1742964575653,7.01939474,2052.8,2052.6,3.69811]
[1742964575846,0.97419,2052.8,2052.7,1.3858]
[1742964576053,5.60540474,2052.7,2052.6,0.6606]
[1742964576248,1.6255,2052.7,2052.6,2.0464]
[1742964576452,6.25670474,2052.7,2052.6,2.0464]
[1742964576642,0.97425,2052.6,2052.5,3.2078]
[1742964576844,5.60545474,2052.6,2052.5,3.2078]
[1742964577245,5.60545474,2052.6,2052.5,4.5806]
[1742964578656,5.60545474,2052.6,2052.5,5.5549]
[1742964580148,4.63120474,2052.6,2052.5,5.5549]
[1742964580353,5.60545474,2052.6,2052.5,5.5549]
[1742964581552,0.9743,2052.5,2052.4,1.65910732]
[1742964581752,5.60550474,2052.5,2052.4,2.94200732]
[1742964582361,5.60550474,2052.5,2052.4,1.96769732]
[1742964582564,5.60550474,2052.5,2052.4,1.29019732]
[1742964582859,5.60550474,2052.5,2052.4,0.00729732]
[1742964587558,4.63120474,2052.5,2051.8,4.5136]
[1742964587759,0.97454,2052.0,2051.9,1.3579]
[1742964588260,5.60574474,2052.0,2051.9,1.3579]
[1742964589565,5.60574474,2052.0,2051.9,2.33248]
[1742964589856,4.63120474,2052.0,2051.9,2.33248]
[1742964590263,0.97445,2052.2,2051.9,2.33248]
[1742964590465,0.97445,2052.2,2052.1,0.97449]
[1742964590766,0.97446,2052.2,2052.1,0.97446]
[1742964590958,5.60566474,2052.2,2052.1,2.34356]
[1742964593258,5.60566474,2052.2,2052.1,1.3691]
[1742964593759,5.60566474,2052.2,2052.1,2.6558]
[1742964593959,5.60566474,2052.2,2052.1,3.63029]
[1742964594665,5.60566474,2052.2,2052.1,2.6558]
[1742964595362,5.60566474,2052.2,2052.1,3.63029]
[1742964596763,1.3239,2052.3,2052.2,0.97444]
[1742964596961,5.95510474,2052.3,2052.2,2.32544]
[1742964597661,0.6908,2052.6,2052.3,2.43595]
[1742964597860,6.00340474,2052.5,2052.4,2.0687]
[1742964598369,6.00340474,2052.5,2052.4,3.04305]
[1742964598661,6.97770474,2052.5,2052.4,3.04305]
[1742964598860,6.00340474,2052.5,2052.4,3.04305]
[1742964600069,6.97770474,2052.5,2052.4,3.04305]
[1742964600366,3.7909,2052.8,2052.4,5.2765]
[1742964600367,0.97417,2052.8,2052.4,5.2765]
[1742964600570,4.63120474,2052.7,2052.6,0.97425]
[1742964600760,4.63120474,2052.7,2052.6,2.26885]
[1742964600961,4.63120474,2052.7,2052.6,43.06885]
[1742964601763,6.02720474,2052.7,2052.6,43.06885]
[1742964601967,7.00140474,2052.7,2052.6,43.06885]
[1742964602671,6.02720474,2052.7,2052.6,43.06885]
[1742964603264,7.00140474,2052.7,2052.6,1.2946]
[1742964603465,7.66940474,2052.7,2052.6,1.2946]
[1742964603673,6.69520474,2052.7,2052.4,4.88061]
[1742964603969,0.9743,2052.5,2052.4,4.88061]
[1742964604162,0.9743,2052.5,2052.4,1.67281]
[1742964604370,5.60550474,2052.5,2052.4,1.67281]
[1742964604561,5.60550474,2052.5,2052.4,0.6985]
[1742964604875,5.60550474,2052.5,2052.2,0.6854]
[1742964604876,0.97439,2052.3,2052.2,0.6854]
[1742964605173,0.97439,2052.3,2052.2,1.99]
[1742964605372,5.60559474,2052.3,2052.2,1.99]
[1742964605573,0.97444,2052.2,2052.1,4.87647]
[1742964605771,7.57274474,2052.2,2052.1,3.2078]
[1742964605983,7.27790474,2052.2,2051.9,1.3046]
[1742964606170,6.89222474,2052.1,2052.0,0.97453]
[1742964606468,6.89222474,2052.1,2051.9,2.27915]
[1742964606469,0.97454,2052.0,2051.9,2.27915]
[1742964606673,6.89224474,2052.0,2051.9,2.27915]
[1742964606874,5.91770474,2052.0,2051.9,2.27915]
[1742964607068,6.89224474,2052.0,2051.9,2.27915]
[1742964608270,6.89224474,2052.0,2051.9,1.3046]
[1742964608768,6.89224474,2052.0,2051.9,2.27918]
[1742964610774,5.91770474,2052.0,2051.9,2.27918]
[1742964617573,3.8846,2052.4,2051.9,2.27918]
[1742964617877,5.91640474,2052.3,2052.2,0.97444]
[1742964618479,6.89079474,2052.3,2052.2,0.97444]
[1742964619671,5.91640474,2052.3,2052.2,0.97444]
[1742964620074,6.89079474,2052.3,2052.2,0.97444]
[1742964622164,5.91640474,2052.3,2052.2,0.97444]
[1742964622380,5.91640474,2052.3,2052.2,2.35744]
[1742964623181,6.89079474,2052.3,2052.2,2.35744]
[1742964625082,5.91640474,2052.3,2052.2,2.35744]
[1742964626282,6.89079474,2052.3,2052.2,2.35744]
[1742964626484,6.89079474,2052.3,2052.2,1.383]
[1742964626873,6.89079474,2052.3,2052.1,1.64006]
[1742964627074,5.94580474,2052.2,2052.1,1.64006]
[1742964628282,5.94580474,2052.2,2052.1,0.97446]
[1742964628978,5.94580474,2052.2,2052.1,2.35096]
[1742964630282,0.97453,2052.1,2051.8,3.2078]
[1742964630483,7.63113474,2052.1,2051.9,0.97458]
[1742964630680,4.63120474,2052.0,2051.9,2.35108]
[1742964630887,5.98230474,2052.0,2051.9,2.99448]
[1742964631578,6.95684474,2052.0,2051.9,2.99448]
[1742964631779,5.98230474,2052.0,2051.9,2.99448]
[1742964632689,6.95684474,2052.0,2051.9,2.99448]
[1742964632879,6.95684474,2052.0,2051.9,2.35108]
[1742964633280,5.98230474,2052.0,2051.9,2.35108]
[1742964633482,5.98230474,2052.0,2051.9,3.00338]
[1742964633787,1.3511,2052.0,2051.9,3.00338]
[1742964634685,3.13,2052.6,2052.3,0.97437]
[1742964634987,0.97438,2052.4,2052.3,0.97437]
[1742964635487,4.63120474,2052.4,2052.3,0.97437]
[1742964635986,6.88465474,2052.4,2052.3,0.97437]
[1742964637081,0.97439,2052.3,2052.2,1.3819]
[1742964637287,0.97444,2052.2,2052.1,0.97445]
[1742964637490,6.31274474,2052.2,2052.1,2.36305]
[1742964637682,6.66070474,2052.2,2052.1,2.36305]
[1742964637882,7.63514474,2052.2,2052.1,2.36305]
[1742964640279,0.97451,2052.1,2052.0,0.97452]
[1742964640483,0.97454,2052.0,2051.9,0.6523]
[1742964640786,5.60574474,2052.0,2051.9,0.6523]
[1742964640988,6.90234474,2052.0,2051.9,0.6523]
[1742964641289,6.90234474,2052.0,2051.9,0.97458]
[1742964641681,6.90234474,2052.0,2051.9,2.29828]
[1742964645098,0.97458,2051.9,2051.8,4.18242]
[1742964645290,7.57798474,2051.9,2051.8,5.54002]
[1742964649598,5.93070474,2051.9,2051.8,5.54002]
[1742964649990,0.00729732,2052.1,2052.0,0.97454]
[1742964650298,4.63850206,2052.1,2052.0,0.97454]
[1742964650489,4.63850206,2052.1,2052.0,3.04154]
[1742964651096,6.00390206,2052.1,2052.0,3.04154]
[1742964656896,0.00729732,2052.1,2052.0,3.04154]
[1742964661199,1.64627,2052.6,2052.2,2.43611]
[1742964661400,6.97630474,2052.5,2052.4,0.97435]
[1742964661596,7.67650474,2052.5,2052.4,0.97435]
[1742964661800,7.67650474,2052.5,2052.4,2.35425]
[1742964666605,6.70220474,2052.5,2052.4,2.35425]
[1742964667197,6.00200474,2052.5,2052.4,2.35425]
[1742964670112,1.3708,2052.5,2052.4,2.35425]
[1742964673014,0.00729732,2052.7,2052.6,0.97425]
[1742964673214,0.00729732,2052.7,2052.6,4.18205]
[1742964673413,4.63850206,2052.7,2052.6,4.18205]
[1742964673713,4.63850206,2052.7,2052.6,5.56925]
[1742964674518,5.91490206,2052.7,2052.6,5.56925]
[1742964676113,1.28369732,2052.7,2052.6,5.56925]
[1742964677129,5.91490206,2052.7,2052.6,5.56925]
[1742964682520,6.3378,2053.3,2053.1,0.97397]
[1742964682726,0.97403,2053.1,2053.0,0.97404]
[1742964682922,0.97411,2053.0,2052.8,0.97411]
[1742964683129,0.97411,2053.0,2052.9,0.97411]
[1742964683522,8.81311474,2053.0,2052.9,0.97411]
[1742964683725,0.97411,2052.9,2052.8,41.77413]
[1742964683924,7.55481474,2052.9,2052.8,43.07603]
[1742964684325,6.58070474,2052.9,2052.8,43.07603]
[1742964684517,7.55481474,2052.9,2052.8,43.07603]
[1742964684721,7.55481474,2052.9,2052.8,41.77413]
[1742964684926,6.58070474,2052.9,2052.8,41.77413]
[1742964685331,7.55481474,2052.9,2052.8,41.77413]
[1742964686126,8.19751474,2052.9,2052.8,41.77413]
[1742964695838,7.22340474,2052.9,2052.8,41.77413]
[1742964697245,8.19751474,2052.9,2052.8,41.77413]
[1742964702228,5.93160474,2052.9,2052.8,41.77413]
[1742964703538,6.90571474,2052.9,2052.8,41.77413]
[1742964703731,5.93160474,2052.9,2052.8,41.77413]
[1742964704340,6.90571474,2052.9,2052.8,41.77413]
[1742964704537,5.93160474,2052.9,2052.8,41.77413]
[1742964704736,6.90571474,2052.9,2052.8,41.77413]
[1742964704938,5.93160474,2052.9,2052.8,41.77413]
[1742964705638,0.66099732,2053.2,2053.1,0.97401]
[1742964705639,0.00729732,2053.2,2053.1,0.97401]
[1742964705835,0.00729732,2053.2,2053.1,4.18181]
[1742964706041,4.18157,2053.7,2053.2,2.43487]
[1742964706247,6.96518474,2053.6,2053.5,0.97383]
[1742964706433,5.99140474,2053.6,2053.5,0.97383]
[1742964706838,5.99140474,2053.6,2053.5,2.34123]
[1742964707446,6.96518474,2053.6,2053.5,2.34123]
[1742964708144,5.99140474,2053.6,2053.5,2.34123]
[1742964709149,6.96518474,2053.6,2053.5,2.34123]
[1742964717555,0.97383,2053.5,2053.4,3.2078]
[1742964717852,0.97387,2053.4,2053.3,3.56289]
[1742964718045,6.30347474,2053.4,2053.3,3.56289]
[1742964718241,7.70007474,2053.4,2053.3,3.56289]
[1742964718445,7.70007474,2053.4,2053.3,2.90919]
[1742964719445,0.97392,2053.3,2053.2,0.97393]
[1742964719645,7.00172474,2053.3,2053.2,2.25823]
[1742964720350,0.97397,2053.2,2053.1,4.8501]
[1742964720556,5.92540474,2053.2,2053.1,4.8501]
[1742964720956,5.92540474,2053.2,2053.1,6.2054]
[1742964721858,6.89937474,2053.2,2053.1,6.2054]
[1742964722255,5.92540474,2053.2,2053.1,6.2054]
[1742964723055,6.89937474,2053.2,2053.1,6.2054]
[1742964724152,6.89937474,2053.2,2053.1,5.2314]
[1742964724460,0.97401,2053.1,2053.0,0.97403]
[1742964724763,7.65301474,2053.1,2053.0,0.97403]
[1742964725153,7.65301474,2053.1,2052.9,2.32867]
[1742964725354,6.96046474,2053.0,2052.9,2.32867]
[1742964725556,5.98640474,2053.0,2052.9,2.32867]
[1742964725854,6.96046474,2053.0,2052.9,2.32867]
[1742964726055,5.98640474,2053.0,2052.9,2.32867]
[1742964726860,6.96046474,2053.0,2052.9,2.32867]
[1742964727262,5.98640474,2053.0,2052.9,2.32867]